Cogmind - Beta 12 @@@ ROGUE MODE // 2023.04.28 @ 20:09:16 Player: Zirov Result: Self-destructed Performance ------------- Evolutions (1) 500 Regions Visited (2) 400 Robots Destroyed (15) 75 Value Destroyed (468) 468 Prototype IDs (0) 0 Alien Tech Used (0) 0 Bonus (0) 0 TOTAL SCORE: 1443 Bonus ------- None Cogmind --------- Core Integrity 315/400 Matter 300/300 Energy 265/265 System Corruption 0% Temperature Warm (178) Movement Walking (190) Ox1 Location -9/Materials Parts ------- > --- POWER (1) -------- Improved Ion Engine > --- PROPULSION (3) --- Aluminum Leg Aluminum Leg > --- UTILITY (3) ------ Heat Sink Large Storage Unit Medium Armor Plating > --- WEAPON (2) ------- Medium Laser Small Laser > --- INVENTORY (15) --- Heat Sink Sensor Array Signal Interpreter Shield Generator Hacking Suite Small Laser Particle Cannon Grenade Launcher Rocket Launcher Mining Claw Peak State ------------ > --- POWER ------------ Improved Ion Engine > --- PROPULSION ------- Aluminum Leg Aluminum Leg Aluminum Leg > --- UTILITY ---------- Heat Sink Medium Storage Unit Visual Processing Unit > --- WEAPON ----------- Medium Laser Small Laser > --- INVENTORY -------- Sensor Array Signal Interpreter Medium Armor Plating Hacking Suite Small Laser Particle Cannon Grenade Launcher Rocket Launcher [Rating: 12] Favorites ----------- Power Improved Ion Engine Engine Improved Ion Engine Propulsion Aluminum Leg Leg Aluminum Leg Utility Visual Processing Unit Device Heat Sink Storage Medium Storage Unit Processor Visual Processing Unit Protection Medium Armor Plating Weapon Medium Laser Energy Gun Medium Laser Build | -11 -10 -9 ------- Run | Jun Mat Mat Slots Evolved 2 | . . 2 Power . | . . . Propulsion 1 | . . 1 Utility 1 | . . 1 Weapon . | . . . Parts Attached 17 | 6 6 5 Power 3 | 1 2 . Engine 3 | 1 2 . Core . | . . . Reactor . | . . . Propulsion 5 | 2 1 2 Treads . | . . . Leg 5 | 2 1 2 Wheel . | . . . Hover . | . . . Flight . | . . . Utility 6 | 1 2 3 Device 1 | . . 1 Storage 3 | 1 1 1 Processor 1 | . 1 . Hackware . | . . . Protection 1 | . . 1 Artifact . | . . . Weapon 3 | 2 1 . Energy Gun 3 | 2 1 . Energy Cannon . | . . . Ballistic Gun . | . . . Ballistic Cannon . | . . . Launcher . | . . . Special Weapon . | . . . Impact Weapon . | . . . Slashing Weapon . | . . . Piercing Weapon . | . . . Special Melee Weapon . | . . . Unidentified Prototypes . | . . . Parts Lost 4 | . 2 2 Power 1 | . 1 . Propulsion 2 | . . 2 Utility . | . . . Weapon 1 | . 1 . Highest Loss Streak 2 | . 2 1 To Critical Strikes . | . . . Average Slot Usage (%) 96 | . 94 100 Engine 12 | . 13 11 Leg 29 | . 28 33 Device 3 | . . 11 Storage 13 | . 14 11 Processor 7 | . 9 4 Protection 1 | . . 7 Energy Gun 26 | . 27 22 Naked Turns . | . . . Heaviest Build 38 | 12 20 38 Greatest Support 30 | 20 20 30 Greatest Overweight (x) 1 | . . 1 Average Overweight (x) . | . . . Largest Inventory Capacity 15 | 8 10 15 Average Capacity 10 | 6 9 14 Most Carried 10 | 2 10 10 Average Carried 7 | 1 8 8 Final Capacity 15 | 8 10 15 Final Carried 10 | 2 10 10 Class Distribution -------------------- 100% | Mutant Dominant Class ---------------- Mutant | -10/Materials Mutant | -9/Materials Resources | -11 -10 -9 ----------- Run | Jun Mat Mat Matter Collected 365 | 260 60 45 Remotely . | . . . Salvage Created 601 | . 221 380 Parts 23 | . 13 10 Haulers Intercepted 1 | . 1 . Recyclers Shooed . | . . . Parts Field Recycled . | . . . Retrieved Matter . | . . . Parts Self-Destructed . | . . . Prevented . | . . . Kills | -11 -10 -9 ------- Run | Jun Mat Mat Combat Hostiles Destroyed 12 | . 4 8 Guns 12 | . 4 8 Classes Destroyed 6 | . 5 1 Hauler 1 | . 1 . Operator 1 | . 1 . Watcher 1 | . 1 . Swarmer 1 | . 1 . Grunt 10 | . 3 7 Sentry 1 | . . 1 Best Kill Streak 5 | . 2 5 Combat Bots Only 5 | . 2 5 Max Kills in Single Turn 1 | . 1 1 Gunslinging . | . . . Exploded . | . . . Melee . | . . . Uniques/NPCs Destroyed . | . . . Combat | -11 -10 -9 -------- Run | Jun Mat Mat Damage Taken 874 | . 313 561 Core 169 | . 84 85 Absorbed by Shields . | . . . Core Remaining (%) 83 | 100 66 . Volleys Fired 63 | . 33 30 Largest 2 | . 2 2 Hottest 100 | . 100 90 Shots Fired 124 | . 64 60 Gun 124 | . 64 60 Cannon . | . . . Launcher . | . . . Special . | . . . Kinetic . | . . . Thermal 124 | . 64 60 Explosive . | . . . Electromagnetic . | . . . Robot Hit Streak 12 | . 11 12 Robot Miss Streak 3 | . 2 3 Penetration Max . | . . . Secondary Targets 2 | . . 2 Max Gunslinging Chain 1 | . . 1 Shots Hit Robots 92 | . 46 46 Core Hits 31 | . 12 19 Critical Kills . | . . . Critical Parts Destroyed . | . . . Critical Strikes 5 | . 1 4 Burn 5 | . 1 4 Melee Attacks . | . . . Impact . | . . . Slashing . | . . . Piercing . | . . . Sneak Attacks . | . . . Combat Hostiles . | . . . Follow-up Attacks . | . . . Damage Inflicted 1123 | . 562 561 Guns 1123 | . 562 561 Cannons . | . . . Explosions . | . . . Melee . | . . . Ramming . | . . . Kinetic . | . . . Thermal 1123 | . 562 561 Explosive . | . . . Electromagnetic . | . . . Impact . | . . . Slashing . | . . . Piercing . | . . . Highest Corruption . | . . . Average Corruption . | . . . Corruption Purged . | . . . Corruption Blocked . | . . . Overload Shots . | . . . Overflow Damage . | . . . Projectiles . | . . . Explosions . | . . . Melee . | . . . Knockbacks . | . . . Impact . | . . . Kinetic . | . . . Secondary . | . . . Self-Inflicted Damage . | . . . Shots . | . . . Rammed . | . . . Targets Rammed . | . . . Kicked . | . . . Crushed . | . . . Highest Temperature 293 | . 293 180 Average Temperature 98 | . 109 76 Received Heat Transfer 480 | . 147 333 Effects 1 | . 1 . Energy Bleed 1 | . 1 . Siege Activations . | . . . Robots Corrupted . | . . . Combat Hostiles . | . . . Parts Fried . | . . . Impact Corruptions . | . . . Robots Melted . | . . . Combat Hostiles . | . . . Parts Melted 10 | . 3 7 Heat Transferred 3463 | . 1692 1771 Parts Sabotaged . | . . . Parts Stolen . | . . . Parts Stripped . | . . . Power Chain Reactions . | . . . Missiles Intercepted . | . . . Alert | -11 -10 -9 ------- Run | Jun Mat Mat Peak Influence 252 | . 137 252 Initial 27 | . . 27 Average 66 | . 46 134 Maximum Alert Level 1 | . . 1 Low Security (%) 96 | 100 100 87 Level 1 3 | . . 12 Level 2 . | . . . Level 3 . | . . . Level 4 . | . . . Level 5 . | . . . High Security . | . . . Max Security . | . . . Squads Dispatched 2 | . 1 1 Investigation . | . . . Extermination . | . . . Reinforcement 2 | . 1 1 Assault . | . . . Garrison . | . . . Intercept . | . . . Searches Triggered . | . . . Construction Impeded . | . . . Haulers Reinforced . | . . . Active Scanning Responses . | . . . Cargo Convoy Interrupts . | . . . Stealth | -11 -10 -9 --------- Run | Jun Mat Mat Distress Signals 2 | . 2 . Communications Jammed . | . . . Distress Signals . | . . . Times Spotted 28 | . 14 14 Peak Tracking Total 7 | . 4 7 Tactical Retreats 1 | . 1 . Traps | -11 -10 -9 ------- Run | Jun Mat Mat Traps Triggered . | . . . Indirectly . | . . . Trap Hack Attempts . | . . . Triggered . | . . . Disarmed . | . . . Reprogrammed . | . . . Reused . | . . . Traps Extracted . | . . . Installed . | . . . Triggered . | . . . Machines | -11 -10 -9 ---------- Run | Jun Mat Mat Machines Disabled . | . . . Max in Single Turn . | . . . Machines Repaired . | . . . Machines Sabotaged . | . . . Overloaded Fab Kills . | . . . Hacking | -11 -10 -9 --------- Run | Jun Mat Mat Machines Accessed 4 | . 4 . Terminals 4 | . 4 . Fabricators . | . . . Repair Stations . | . . . Recycling Units . | . . . Scanalyzers . | . . . Garrison Access . | . . . Total Hacks 16 | . 16 . Successful 4 | . 4 . Failed 12 | . 12 . Catastrophic 1 | . 1 . Database Lockouts . | . . . Manual 3 | . 3 . Terminals 16 | . 16 . Fabricators . | . . . Repair Stations . | . . . Recycling Units . | . . . Scanalyzers . | . . . Garrison Access . | . . . Terminal Hacks 4 | . 4 . Terminal Index 1 | . 1 . Locate Traps 1 | . 1 . Registered Components 1 | . 1 . Zone Layout 1 | . 1 . Fabricator Hacks . | . . . Repair Station Hacks . | . . . Recycling Unit Hacks . | . . . Scanalyzer . | . . . Garrison Access Hacks . | . . . Unauthorized Hacks . | . . . Terminals . | . . . Fabricators . | . . . Repair Stations . | . . . Recycling Units . | . . . Scanalyzers . | . . . Garrison Access . | . . . Data Cores Recovered . | . . . Used . | . . . Hacking Detections 4 | . 4 . Full Trace Events . | . . . Feedback Events . | . . . Feedback Blocked . | . . . Robot Schematics Acquired . | . . . Robots Built . | . . . Authchips . | . . . Time . | . . . Total Robot Build Rating . | . . . Part Schematics Acquired . | . . . Parts Built . | . . . Authchips . | . . . Time . | . . . Total Part Build Rating . | . . . Parts Repaired . | . . . Time . | . . . Parts Recycled . | . . . Recycled Matter . | . . . Retrieved Matter . | . . . Retrieved Components . | . . . Parts Scanalyzed . | . . . Part Schematics Acquired . | . . . Parts Damaged . | . . . Bothacking | -11 -10 -9 ------------ Run | Jun Mat Mat Used RIF Installer . | . . . Robots Hacked . | . . . Non-combat . | . . . Combat . | . . . Robot Hacks Applied . | . . . Relay Couplers Released . | . . . Fabnet Peak Effective % . | . . . Robots Rewired . | . . . Allies Hacked . | . . . Hacks Repelled . | . . . Allies | -11 -10 -9 -------- Run | Jun Mat Mat Total Allies . | . . . Largest Group . | . . . Highest-Rated Group . | . . . Highest-Rated Ally . | . . . Total Orders . | . . . Ally Attacks . | . . . Total Damage . | . . . Kills . | . . . Allies Corrupted . | . . . Allies Melted . | . . . Intel | -11 -10 -9 ------- Run | Jun Mat Mat Robot Analysis Total . | . . . Derelict Logs Recovered . | . . . Drone Launches . | . . . Drone Recoveries . | . . . Exploration | -11 -10 -9 ------------- Run | Jun Mat Mat Turns Passed 857 | 66 567 224 Spaces Moved 425 | 49 315 61 Core 5 | 5 . . Treads . | . . . Legs 420 | 44 315 61 Wheels . | . . . Hover . | . . . Flight . | . . . Fastest Speed 50 | 50 120 120 Average Speed 127 | 112 120 177 Slowest Speed 190 | 120 120 190 Overloaded Moves . | . . . Propulsion Burnouts . | . . . Robots Hopped . | . . . Cave-ins Triggered . | . . . Exploration Rate (%) 17 | 3 40 8 Regions Visited 2 Branch Regions . Pre-discovered Areas . | . . . Known Exits Taken . | . . . Unknown Exits Taken 2 | 1 1 . Scrap Searched . | . . . Spaces Dug . | . . . Terrain Destroyed . | . . . Melee . | . . . Projectile . | . . . AOE . | . . . Terrain Rammed . | . . . Walls Destroyed . | . . . Machines Disabled . | . . . Actions | -11 -10 -9 --------- Run | Jun Mat Mat Total 613 | 56 441 116 Wait 85 | . 70 15 Move 423 | 48 314 61 Hop . | . . . Pick Up 18 | 2 13 3 Fast Attach 8 | 6 1 1 Attach 5 | . 2 3 Detach 1 | . . 1 Swap 4 | . 3 1 Drop 6 | . 5 1 Fire 63 | . 33 30 Melee . | . . . Ram . | . . . Kick . | . . . Crush . | . . . Escape Stasis . | . . . Rewire . | . . . Trap . | . . . Miscellaneous . | . . . Route ------- -11/Junkyard -10/Materials -9/Materials History --------- Turn | Location | Event 3 | -11/Junkyard | Discovered new exit (range 15) 67 | -11/Junkyard | Entered Materials 311 | -10/Materials | Build established: Mutant 594 | -10/Materials | Discovered new exit (range 10) 634 | -10/Materials | Entered another Materials area 634 | -9/Materials | Evolved 2 slots: Propulsion x1, Utility x1 858 | -9/Materials | Self-destructed Last Messages --------------- 00762_ R-06 Scavenger collects Heat Sink. 00765_ K-01 Serf collects debris. 00765_ R-06 Scavenger collects Lgt. Treads. 00768_ K-01 Serf collects debris. 00778_ Acquired Mining Claw. 00792_ Acquired 10 matter. 00827_ Destroyed Heat Sink. 00829_ G-34 Mercenary overheating. 00830_ G-34 Mercenary heat spikes uncontrollably. 00830_ Aluminum Leg melted. 00830_ G-34 Mercenary destroyed. 00839_ M-13 Machinist repairs G-47 Trooper. 00849_ G-47 Trooper suffers critical hit (Burn). 00853_ Aluminum Leg destroyed. 00853_ Critical hit (Burn: +37). 00854_ G-47 Trooper heat spikes uncontrollably. 00855_ Aluminum Leg melted. 00855_ Particle Gun melted. 00855_ G-47 Trooper destroyed. 00855_ Switching to secondary target: G-34 Mercenary. Map ----- +----------------------------------------------------+ | ?????????????????????????????????????????????????? | | ?????????????????????????????????????????????????? | | ?????????????????????????????????????????????????? | | ?????????????????????????????????????????????????? | | ?????????????????????????????????????????????????? | | ?????????????????????????????????????????????????? | | ?????????????????????????????????????????????????? | | ?????????????????????????????????????????????????? | | ?????????????????????????????????????????????????? | | ?????????????????????? ??????????????????????????? | | ?????????????????????" ??????????????????????????? | | ????????????????????? ??????????????????????????? | | ????????????????????? ??????????????????????????? | | ????????????????? ??" ?????????????????????????? | | ???????????????? """ ?????????????????????????? | | ???????????????? """ ""?? #???????????????????? | | ????????????????# #???????????????????? | | ????????????????# #???????????????????? | | ????????????????# """ """ #???????????????????? | | ???????????????## """ """ ????????????????????? | | ???????????????# """ """ ?????????????????????? | | ???????????????+ ? ??????????????????????? | | ???????????????# ???k ???????????????????????? | | ???????????????# #???#%#???????????????????????? | | ???????????????# #####g########????????????????? | | ???????????????# ##%%%g@ #????????????????? | | ??????????????## ##%""" o #????????????????? | | ????########### #%"R #????????????????? | | ????# # """m! [ #????????????????? | | ????# T + g !! ##???????????????? | | ????# # !! #???????????????? | | ????# ####### # ##???????????????? | | ????# #?????###################????????????????? | | ????# ####?????????????????????????????????????? | | ????# !##????????????????????????????????????? | | ????# !#????????????????????????????????????? | | ????# !#????????????????????????????????????? | | ????# !#????????????????????????????????????? | | ????# !#????????????????????????????????????? | | ????# !##????????????????????????????????????? | | ????# ####?????????????????????????????????????? | | ????# #????????????????????????????????????????? | | ????# #????????????????????????????????????????? | | ????# #????????????????????????????????????????? | | ????# #????????????????????????????????????????? | | ????# #############????????????????????????????? | | ????# ????????????????????????? | | ????# ????????????????????????? | | ????# ????????????????????????? | | ????###################??????????????????????????? | +----------------------------------------------------+ Best States ------------- Heat Dissipation 38 Energy Generation 12 Energy Capacity 265 Matter Stores 300 Matter Capacity 300 Sight Range 18 Terrain Scan Density 10 Armor Coverage 225 Evasion (%) 55 Item Schematics ----------------- None Robot Schematics ------------------ None Fabricated ------------ Nothing Alien Tech Used ----------------- None Achievements -------------- None Challenges ------------ None Game ------ Seed MetafieldMissileStripper Manual? 0 Play Time 00:10:01 Cumulative 71.2 hours Start 2023.04.24 @ 18:05:13 End 2023.04.28 @ 20:09:16 Sessions 3 Manual Loads 0 Difficulty Rogue Special Mode None Game No. 75 Rogue 75 Adventurer 0 Explorer 0 Win Type - Total 0 Types 0/0/0/0/0/0/0/0/0 Lore% 27 Gallery% 35 Achievement% 27 Wizard Run 0 Options --------- ASCII 1 Keyboard 1 Movement Numpad Keybinds 0 Fullscreen 1 Font 18/SmallcapsGlow Map View 76x50 Tactical HUD 1 Map Filters NONE Filters NONE Steam 1 RUN: 95dec97c-eec8-4f03-85c8-4c52173ec326